[Event "*** Titled Tuesday Blitz"]
[Site "Chess.com"]
[Date "2020.04.07"]
[Round "8"]
[White "aloe_normansen"]
[Black "jaskol95"]
[Result "0-1"]
[WhiteElo "2194"]
[BlackElo "2390"]
[TimeControl "180+1"]
[EndTime "14:35:18 PDT"]
[Termination "jaskol95 won by resignation"]

1. e4 {[%clk 0:03:00.9]} 1... e6 {[%clk 0:02:56.7]} 2. d4 {[%clk 0:03:00.2]}
2... d5 {[%clk 0:02:54.9]} 3. Nc3 {[%clk 0:02:59.7]} 3... Bb4 {[%clk 0:02:53.1]}
4. e5 {[%clk 0:02:58.6]} 4... Ne7 {[%clk 0:02:51.4]} 5. a3 {[%clk 0:02:54.7]}
5... Bxc3+ {[%clk 0:02:49.6]} 6. bxc3 {[%clk 0:02:54.6]} 6... c5 {[%clk
0:02:49.9]} 7. a4 {[%clk 0:02:54.3]} 7... Qa5 {[%clk 0:02:47.1]} 8. Bd2 {[%clk
0:02:31.9]} 8... Nbc6 {[%clk 0:02:45.2]} 9. Nf3 {[%clk 0:02:30.9]} 9... Bd7
{[%clk 0:02:43.1]} 10. Bd3 {[%clk 0:02:19.4]} 10... c4 {[%clk 0:02:42.1]} 11.
Be2 {[%clk 0:02:19.2]} 11... O-O-O {[%clk 0:02:36.6]} 12. O-O {[%clk 0:02:13]}
12... Qc7 {[%clk 0:02:35.8]} 13. Bc1 {[%clk 0:02:11.6]} 13... h5 {[%clk
0:02:28.2]} 14. Ba3 {[%clk 0:02:09.2]} 14... Nf5 {[%clk 0:02:26.2]} 15. Qd2
{[%clk 0:02:04]} 15... f6 {[%clk 0:02:22.3]} 16. exf6 {[%clk 0:01:42.8]} 16...
gxf6 {[%clk 0:02:20]} 17. Rfb1 {[%clk 0:01:43.1]} 17... Rdg8 {[%clk 0:02:11.2]}
18. a5 {[%clk 0:01:32]} 18... Nd6 {[%clk 0:02:02.8]} 19. Rb2 {[%clk 0:01:17.6]}
19... Ne4 {[%clk 0:02:00.2]} 20. Qe3 {[%clk 0:01:17.2]} 20... f5 {[%clk
0:01:49]} 21. Ne5 {[%clk 0:01:12.6]} 21... a6 {[%clk 0:01:30.8]} 22. f3 {[%clk
0:01:08.8]} 22... f4 {[%clk 0:01:25.1]} 23. Qxf4 {[%clk 0:00:53.5]} 23... Nxc3
{[%clk 0:01:25.1]} 24. Bf1 {[%clk 0:00:51.1]} 24... Nb5 {[%clk 0:00:47.7]} 25.
Bc5 {[%clk 0:00:35.8]} 25... Nxe5 {[%clk 0:00:20.8]} 26. Qxe5 {[%clk 0:00:35.4]}
26... Qxe5 {[%clk 0:00:21.4]} 27. dxe5 {[%clk 0:00:35.5]} 27... Bc6 {[%clk
0:00:21.8]} 28. h4 {[%clk 0:00:31]} 28... Kd7 {[%clk 0:00:21.5]} 29. Kf2 {[%clk
0:00:30.3]} 29... Rh7 {[%clk 0:00:20.9]} 30. Rd1 {[%clk 0:00:28.8]} 30... Rhg7
{[%clk 0:00:18.2]} 31. Bd4 {[%clk 0:00:23.3]} 31... Kc7 {[%clk 0:00:14.7]} 32.
c3 {[%clk 0:00:22.5]} 32... Kd7 {[%clk 0:00:13]} 33. Re2 {[%clk 0:00:21.4]}
33... Kc7 {[%clk 0:00:13]} 34. Red2 {[%clk 0:00:20.7]} 34... Rf7 {[%clk
0:00:13.2]} 35. Rc2 {[%clk 0:00:20.2]} 35... Rgf8 {[%clk 0:00:13.4]} 36. Rcd2
{[%clk 0:00:19.9]} 36... Rf4 {[%clk 0:00:12.3]} 37. Be3 {[%clk 0:00:19.4]} 37...
R4f5 {[%clk 0:00:06.8]} 38. Be2 {[%clk 0:00:17.5]} 38... Nxc3 {[%clk 0:00:06.2]}
39. Rc1 {[%clk 0:00:15.4]} 39... Ne4+ {[%clk 0:00:06.7]} 40. Ke1 {[%clk
0:00:14.3]} 40... Nxd2 {[%clk 0:00:07.6]} 41. Kxd2 {[%clk 0:00:14.9]} 41... Rxe5
{[%clk 0:00:08]} 42. Bb6+ {[%clk 0:00:13.4]} 42... Kc8 {[%clk 0:00:07.6]} 43.
Bc5 {[%clk 0:00:13]} 43... Ref5 {[%clk 0:00:08.1]} 44. Bxf8 {[%clk 0:00:12.4]}
44... Rxf8 {[%clk 0:00:09]} 45. Ke3 {[%clk 0:00:11.7]} 45... Kd7 {[%clk
0:00:09.5]} 46. f4 {[%clk 0:00:11.7]} 46... Kd6 {[%clk 0:00:09.9]} 47. Rd1
{[%clk 0:00:11.4]} 47... Rg8 {[%clk 0:00:09.6]} 48. Bf3 {[%clk 0:00:10.8]} 48...
e5 {[%clk 0:00:09.6]} 49. fxe5+ {[%clk 0:00:10.6]} 49... Kxe5 {[%clk 0:00:10.5]}
50. Rd4 {[%clk 0:00:10.8]} 50... Rf8 {[%clk 0:00:09.7]} 51. Rd2 {[%clk
0:00:09.7]} 51... Rf4 {[%clk 0:00:08.8]} 52. g3 {[%clk 0:00:08.7]} 52... d4+
{[%clk 0:00:08.6]} 53. Kf2 {[%clk 0:00:08]} 53... Rxf3+ {[%clk 0:00:09]} 54. Ke2
{[%clk 0:00:08.4]} 54... d3+ {[%clk 0:00:09.5]} 55. Ke1 {[%clk 0:00:08.1]} 55...
Kd4 {[%clk 0:00:09.9]} 56. Rf2 {[%clk 0:00:07.4]} 56... Rxf2 {[%clk 0:00:09.8]}
57. Kxf2 {[%clk 0:00:08.3]} 57... c3 {[%clk 0:00:10.7]} 58. g4 {[%clk
0:00:07.5]} 58... d2 {[%clk 0:00:10.8]} 59. Ke2 {[%clk 0:00:07.3]} 59... Bf3+
{[%clk 0:00:10.9]} 0-1

[Event "*** Titled Tuesday Blitz"]
[Site "Chess.com"]
[Date "2020.04.07"]
[Round "8"]
[White "Shtembuliak"]
[Black "harvsp123"]
[Result "1-0"]
[WhiteElo "2863"]
[BlackElo "2566"]
[TimeControl "180+1"]
[EndTime "14:35:19 PDT"]
[Termination "Shtembuliak won by checkmate"]

1. c4 {[%clk 0:03:00.9]} 1... c6 {[%clk 0:02:56.7]} 2. d4 {[%clk 0:02:59.9]}
2... d5 {[%clk 0:02:55.9]} 3. cxd5 {[%clk 0:03:00.5]} 3... cxd5 {[%clk
0:02:54.7]} 4. Nc3 {[%clk 0:03:01.1]} 4... Nf6 {[%clk 0:02:52]} 5. Nf3 {[%clk
0:03:00.8]} 5... Nc6 {[%clk 0:02:51.2]} 6. Bf4 {[%clk 0:03:00.8]} 6... Nh5
{[%clk 0:02:49.2]} 7. Bd2 {[%clk 0:02:59.8]} 7... e6 {[%clk 0:02:28.9]} 8. e3
{[%clk 0:02:52.8]} 8... Nf6 {[%clk 0:02:27.1]} 9. Bd3 {[%clk 0:02:52]} 9... Bd6
{[%clk 0:02:26.1]} 10. O-O {[%clk 0:02:52]} 10... O-O {[%clk 0:02:25.8]} 11. Qe2
{[%clk 0:02:52.5]} 11... Nb4 {[%clk 0:02:18.3]} 12. Bb1 {[%clk 0:02:32.6]} 12...
b6 {[%clk 0:02:16.3]} 13. a3 {[%clk 0:02:32.7]} 13... Ba6 {[%clk 0:02:15.7]} 14.
Nb5 {[%clk 0:02:33.2]} 14... Qd7 {[%clk 0:02:06.2]} 15. Bxb4 {[%clk 0:02:33.3]}
15... Bxb5 {[%clk 0:01:55.7]} 16. Bd3 {[%clk 0:02:32.8]} 16... Bxd3 {[%clk
0:01:55.3]} 17. Qxd3 {[%clk 0:02:33.7]} 17... Ne4 {[%clk 0:01:49.7]} 18. Rfc1
{[%clk 0:02:28.4]} 18... Rfc8 {[%clk 0:01:47.8]} 19. Qa6 {[%clk 0:02:21.2]}
19... f6 {[%clk 0:01:32.3]} 20. Ne1 {[%clk 0:02:09.9]} 20... Bxb4 {[%clk
0:01:17.7]} 21. axb4 {[%clk 0:02:09.5]} 21... Rxc1 {[%clk 0:01:17.5]} 22. Rxc1
{[%clk 0:02:08.8]} 22... Nd6 {[%clk 0:01:18.1]} 23. Nd3 {[%clk 0:01:44.3]} 23...
Qb5 {[%clk 0:01:17.7]} 24. Qxb5 {[%clk 0:01:43]} 24... Nxb5 {[%clk 0:01:18.6]}
25. Rc6 {[%clk 0:01:41.4]} 25... Kf7 {[%clk 0:01:18.7]} 26. g4 {[%clk
0:01:32.8]} 26... Ke7 {[%clk 0:01:07.3]} 27. Nf4 {[%clk 0:01:31.5]} 27... g5
{[%clk 0:01:02.1]} 28. Nh5 {[%clk 0:01:11.2]} 28... Kd7 {[%clk 0:00:58.4]} 29.
Rc1 {[%clk 0:01:09.9]} 29... Rf8 {[%clk 0:00:57.6]} 30. Kg2 {[%clk 0:01:07.4]}
30... h6 {[%clk 0:00:56]} 31. Kg3 {[%clk 0:01:06.7]} 31... f5 {[%clk 0:00:49.8]}
32. h3 {[%clk 0:01:02.5]} 32... Nd6 {[%clk 0:00:48]} 33. f3 {[%clk 0:00:36]}
33... Nc4 {[%clk 0:00:43.7]} 34. e4 {[%clk 0:00:36.6]} 34... fxe4 {[%clk
0:00:36.8]} 35. fxe4 {[%clk 0:00:37.5]} 35... Nd2 {[%clk 0:00:33.5]} 36. exd5
{[%clk 0:00:22.7]} 36... exd5 {[%clk 0:00:34.4]} 37. Ra1 {[%clk 0:00:20.9]}
37... Ne4+ {[%clk 0:00:29.8]} 38. Kg2 {[%clk 0:00:20.9]} 38... Rf2+ {[%clk
0:00:29.6]} 39. Kg1 {[%clk 0:00:21.6]} 39... Rxb2 {[%clk 0:00:29]} 40. Rxa7+
{[%clk 0:00:22.1]} 40... Kc6 {[%clk 0:00:28.3]} 41. Rh7 {[%clk 0:00:22.1]} 41...
Rxb4 {[%clk 0:00:22.6]} 42. Rxh6+ {[%clk 0:00:22.6]} 42... Kb5 {[%clk
0:00:23.2]} 43. Nf6 {[%clk 0:00:14.9]} 43... Rxd4 {[%clk 0:00:21.3]} 44. Nd7
{[%clk 0:00:14.7]} 44... Rd1+ {[%clk 0:00:19.7]} 45. Kg2 {[%clk 0:00:14.8]}
45... Rd2+ {[%clk 0:00:16.5]} 46. Kf3 {[%clk 0:00:15]} 46... Kc4 {[%clk
0:00:13.5]} 47. Rxb6 {[%clk 0:00:13.4]} 47... Rf2+ {[%clk 0:00:09]} 48. Ke3
{[%clk 0:00:13.1]} 48... Rh2 {[%clk 0:00:09.1]} 49. Ne5+ {[%clk 0:00:12]} 49...
Kc5 {[%clk 0:00:09.1]} 50. Rc6+ {[%clk 0:00:11.2]} 50... Kb5 {[%clk 0:00:09.2]}
51. Rh6 {[%clk 0:00:11.8]} 51... Kc5 {[%clk 0:00:08.2]} 52. Nf3 {[%clk
0:00:11.3]} 52... Ra2 {[%clk 0:00:07.7]} 53. Rg6 {[%clk 0:00:10.2]} 53... Ra3+
{[%clk 0:00:08.2]} 54. Ke2 {[%clk 0:00:10.6]} 54... Ra2+ {[%clk 0:00:08.6]} 55.
Ke1 {[%clk 0:00:10.4]} 55... Ra3 {[%clk 0:00:09.2]} 56. Ke2 {[%clk 0:00:09.6]}
56... Ra2+ {[%clk 0:00:09.2]} 57. Ke1 {[%clk 0:00:09.7]} 57... Ra3 {[%clk
0:00:09.8]} 58. Nxg5 {[%clk 0:00:08.9]} 58... Nxg5 {[%clk 0:00:10.7]} 59. Rxg5
{[%clk 0:00:09.5]} 59... Rxh3 {[%clk 0:00:11.4]} 60. Kf2 {[%clk 0:00:10]} 60...
Ra3 {[%clk 0:00:11]} 61. Rg8 {[%clk 0:00:09]} 61... Kd4 {[%clk 0:00:11.5]} 62.
Re8 {[%clk 0:00:08.5]} 62... Ra2+ {[%clk 0:00:10.5]} 63. Kf3 {[%clk 0:00:08.5]}
63... Kc3 {[%clk 0:00:10.1]} 64. Rc8+ {[%clk 0:00:07.7]} 64... Kd3 {[%clk
0:00:09.9]} 65. g5 {[%clk 0:00:07.3]} 65... d4 {[%clk 0:00:10.5]} 66. g6 {[%clk
0:00:07.8]} 66... Ra1 {[%clk 0:00:11]} 67. g7 {[%clk 0:00:07.4]} 67... Rg1
{[%clk 0:00:11.5]} 68. g8=Q {[%clk 0:00:06.4]} 68... Rxg8 {[%clk 0:00:11.4]} 69.
Rxg8 {[%clk 0:00:07.3]} 69... Kc2 {[%clk 0:00:11.8]} 70. Rc8+ {[%clk 0:00:06]}
70... Kd2 {[%clk 0:00:12.3]} 71. Ke4 {[%clk 0:00:06]} 71... d3 {[%clk
0:00:12.9]} 72. Rd8 {[%clk 0:00:06.6]} 72... Ke2 {[%clk 0:00:13.7]} 73. Rxd3
{[%clk 0:00:07.3]} 73... Ke1 {[%clk 0:00:14.3]} 74. Kf3 {[%clk 0:00:06.8]} 74...
Kf1 {[%clk 0:00:14.2]} 75. Rd1# {[%clk 0:00:07.7]} 1-0

[Event "*** Titled Tuesday Blitz"]
[Site "Chess.com"]
[Date "2020.04.07"]
[Round "8"]
[White "Korchmar_Vasiliy"]
[Black "Sviridov_Valery"]
[Result "0-1"]
[WhiteElo "2619"]
[BlackElo "2786"]
[TimeControl "180+1"]
[EndTime "14:35:20 PDT"]
[Termination "Sviridov_Valery won on time"]

1. d4 {[%clk 0:03:00.9]} 1... g6 {[%clk 0:02:59.2]} 2. e4 {[%clk 0:03:00.7]}
2... Bg7 {[%clk 0:02:59.2]} 3. Nc3 {[%clk 0:03:01.1]} 3... d6 {[%clk 0:02:59.7]}
4. f4 {[%clk 0:03:01.4]} 4... a6 {[%clk 0:02:59.6]} 5. Nf3 {[%clk 0:03:01.6]}
5... b5 {[%clk 0:02:59.5]} 6. Bd3 {[%clk 0:03:01.8]} 6... Bb7 {[%clk 0:02:58.9]}
7. a4 {[%clk 0:03:01.8]} 7... b4 {[%clk 0:02:58.5]} 8. Ne2 {[%clk 0:03:01.9]}
8... Nd7 {[%clk 0:02:58.6]} 9. O-O {[%clk 0:03:00.5]} 9... c5 {[%clk 0:02:57.3]}
10. c3 {[%clk 0:03:00.3]} 10... Ngf6 {[%clk 0:02:51.3]} 11. e5 {[%clk
0:02:59.9]} 11... Nd5 {[%clk 0:02:50.9]} 12. a5 {[%clk 0:02:58.6]} 12... bxc3
{[%clk 0:02:50.2]} 13. bxc3 {[%clk 0:02:59.5]} 13... O-O {[%clk 0:02:49.1]} 14.
Bd2 {[%clk 0:02:59.8]} 14... cxd4 {[%clk 0:02:48.2]} 15. cxd4 {[%clk 0:03:00.7]}
15... dxe5 {[%clk 0:02:45]} 16. fxe5 {[%clk 0:03:01.6]} 16... Rb8 {[%clk
0:02:38.6]} 17. Ng3 {[%clk 0:03:00.7]} 17... Nc7 {[%clk 0:02:17.2]} 18. Qe2
{[%clk 0:02:53.7]} 18... Nb5 {[%clk 0:02:14.1]} 19. Ne4 {[%clk 0:02:38.9]} 19...
Bd5 {[%clk 0:02:10]} 20. Kh1 {[%clk 0:02:30.8]} 20... f6 {[%clk 0:02:10.1]} 21.
Rad1 {[%clk 0:02:16.7]} 21... Kh8 {[%clk 0:02:05.9]} 22. Qe1 {[%clk 0:01:54.7]}
22... Qc7 {[%clk 0:02:02.7]} 23. Rc1 {[%clk 0:01:50.5]} 23... Qb7 {[%clk
0:02:02.4]} 24. Qh4 {[%clk 0:01:44.1]} 24... Rbc8 {[%clk 0:01:55.5]} 25. Nc5
{[%clk 0:01:32.3]} 25... Nxc5 {[%clk 0:01:49.4]} 26. Bxg6 {[%clk 0:01:32.5]}
26... Bg8 {[%clk 0:01:49.7]} 27. dxc5 {[%clk 0:01:30.6]} 27... Qd7 {[%clk
0:01:00.2]} 28. Be3 {[%clk 0:01:10.8]} 28... Qe6 {[%clk 0:00:57.6]} 29. Bb1
{[%clk 0:01:02]} 29... f5 {[%clk 0:00:54.5]} 30. Nd4 {[%clk 0:00:47.2]} 30...
Nxd4 {[%clk 0:00:44.5]} 31. Bxd4 {[%clk 0:00:48.1]} 31... Qd7 {[%clk 0:00:34.7]}
32. Rcd1 {[%clk 0:00:36.1]} 32... Qe6 {[%clk 0:00:33.4]} 33. Qf2 {[%clk
0:00:33]} 33... f4 {[%clk 0:00:30.3]} 34. Qe2 {[%clk 0:00:25.9]} 34... Qc4
{[%clk 0:00:27.6]} 35. Qb2 {[%clk 0:00:16.8]} 35... Rb8 {[%clk 0:00:26.3]} 36.
Qc3 {[%clk 0:00:15.4]} 36... Qxc3 {[%clk 0:00:25.1]} 37. Bxc3 {[%clk 0:00:16.3]}
37... Bc4 {[%clk 0:00:22.4]} 38. Bd3 {[%clk 0:00:12.3]} 38... Rb3 {[%clk
0:00:19.1]} 39. Bxc4 {[%clk 0:00:10]} 39... Rxc3 {[%clk 0:00:19.5]} 40. Bxa6
{[%clk 0:00:10.3]} 40... Rxc5 {[%clk 0:00:19.3]} 41. Ra1 {[%clk 0:00:06.1]}
41... Bxe5 {[%clk 0:00:18.9]} 42. Ra2 {[%clk 0:00:03.4]} 42... Ra8 {[%clk
0:00:19.3]} 43. Bb7 {[%clk 0:00:03.1]} 43... Raxa5 {[%clk 0:00:19.1]} 44. Rxa5
{[%clk 0:00:04]} 44... Rxa5 {[%clk 0:00:19.4]} 45. Bf3 {[%clk 0:00:04.9]} 45...
Kg7 {[%clk 0:00:18.4]} 46. Re1 {[%clk 0:00:04.7]} 46... h6 {[%clk 0:00:17.3]}
47. h3 {[%clk 0:00:05.2]} 47... Kf6 {[%clk 0:00:16.9]} 48. Kh2 {[%clk
0:00:05.3]} 48... Bd4 {[%clk 0:00:14.7]} 49. Rd1 {[%clk 0:00:03.4]} 49... Bf2
{[%clk 0:00:14]} 50. Rf1 {[%clk 0:00:03.2]} 50... Bg3+ {[%clk 0:00:14.1]} 51.
Kg1 {[%clk 0:00:03.8]} 51... Ra4 {[%clk 0:00:13.2]} 52. Rd1 {[%clk 0:00:03]}
52... e5 {[%clk 0:00:11.2]} 53. Rd6+ {[%clk 0:00:03.2]} 53... Ke7 {[%clk
0:00:11.3]} 54. Rd1 {[%clk 0:00:03.1]} 54... e4 {[%clk 0:00:11.4]} 55. Be2
{[%clk 0:00:03.4]} 55... Ra2 {[%clk 0:00:10.7]} 56. Bc4 {[%clk 0:00:03.4]} 56...
Rc2 {[%clk 0:00:10.8]} 57. Bd5 {[%clk 0:00:03]} 57... e3 {[%clk 0:00:10.9]} 0-1

[Event "*** Titled Tuesday Blitz"]
[Site "Chess.com"]
[Date "2020.04.07"]
[Round "8"]
[White "Gentlejimmy7"]
[Black "LittlePeasant"]
[Result "1-0"]
[WhiteElo "2636"]
[BlackElo "2773"]
[TimeControl "180+1"]
[EndTime "14:35:21 PDT"]
[Termination "Gentlejimmy7 won by resignation"]

1. d4 {[%clk 0:03:00.9]} 1... Nf6 {[%clk 0:02:59]} 2. g3 {[%clk 0:03:01.2]} 2...
c5 {[%clk 0:02:59]} 3. Bg2 {[%clk 0:03:02.1]} 3... cxd4 {[%clk 0:02:59.2]} 4.
Qd3 {[%clk 0:03:00.4]} 4... Nc6 {[%clk 0:02:58.4]} 5. Nf3 {[%clk 0:02:57.5]}
5... e5 {[%clk 0:02:58.2]} 6. Bg5 {[%clk 0:02:52.3]} 6... d5 {[%clk 0:02:51]} 7.
Qb3 {[%clk 0:02:36.4]} 7... Bb4+ {[%clk 0:02:23.5]} 8. c3 {[%clk 0:02:34.3]}
8... dxc3 {[%clk 0:02:19.3]} 9. bxc3 {[%clk 0:02:35.2]} 9... Be7 {[%clk
0:02:17.2]} 10. O-O {[%clk 0:02:31]} 10... O-O {[%clk 0:02:17]} 11. Rd1 {[%clk
0:02:31.1]} 11... e4 {[%clk 0:02:16]} 12. Nd4 {[%clk 0:02:24.2]} 12... h6 {[%clk
0:02:00.1]} 13. Bxf6 {[%clk 0:02:12.8]} 13... Bxf6 {[%clk 0:02:01]} 14. Nc2
{[%clk 0:02:09.9]} 14... Be6 {[%clk 0:01:54.4]} 15. Bxe4 {[%clk 0:02:04.6]}
15... Na5 {[%clk 0:01:00.9]} 16. Qb2 {[%clk 0:02:04.5]} 16... Nc4 {[%clk
0:00:49.4]} 17. Qc1 {[%clk 0:02:03.5]} 17... Rc8 {[%clk 0:00:44.7]} 18. Bg2
{[%clk 0:02:01.4]} 18... Qa5 {[%clk 0:00:43.6]} 19. Nd4 {[%clk 0:01:55.4]} 19...
b5 {[%clk 0:00:36.8]} 20. a3 {[%clk 0:01:46.9]} 20... Rfe8 {[%clk 0:00:35.5]}
21. e3 {[%clk 0:01:40.8]} 21... Bg4 {[%clk 0:00:35.5]} 22. Re1 {[%clk
0:01:37.8]} 22... Red8 {[%clk 0:00:31.5]} 23. Nd2 {[%clk 0:01:33.3]} 23... Ne5
{[%clk 0:00:29.8]} 24. N2b3 {[%clk 0:01:30.1]} 24... Qxc3 {[%clk 0:00:29.4]} 25.
Qxc3 {[%clk 0:01:28.2]} 25... Rxc3 {[%clk 0:00:30.3]} 26. Rac1 {[%clk
0:01:20.4]} 26... Rdc8 {[%clk 0:00:29.7]} 27. Rxc3 {[%clk 0:01:17.5]} 27... Rxc3
{[%clk 0:00:30.6]} 28. Bxd5 {[%clk 0:01:17.7]} 28... a6 {[%clk 0:00:30.8]} 29.
Rc1 {[%clk 0:01:15.2]} 29... Rxc1+ {[%clk 0:00:30.5]} 30. Nxc1 {[%clk
0:01:14.1]} 30... Be7 {[%clk 0:00:31.2]} 31. Bb7 {[%clk 0:01:11.1]} 31... Bxa3
{[%clk 0:00:30.1]} 32. Ncb3 {[%clk 0:01:07.7]} 32... b4 {[%clk 0:00:20.5]} 33.
Bxa6 {[%clk 0:01:06]} 33... Bb2 {[%clk 0:00:20.7]} 34. f4 {[%clk 0:01:01]} 34...
Nf3+ {[%clk 0:00:20.5]} 35. Nxf3 {[%clk 0:00:59.5]} 35... Bxf3 {[%clk
0:00:21.4]} 36. Bc4 {[%clk 0:00:57.4]} 36... Bc3 {[%clk 0:00:21.9]} 37. Kf2
{[%clk 0:00:57.6]} 37... Bd1 {[%clk 0:00:22.4]} 38. e4 {[%clk 0:00:56.3]} 38...
Kf8 {[%clk 0:00:22.7]} 39. Ke3 {[%clk 0:00:54.6]} 39... f6 {[%clk 0:00:22.9]}
40. h3 {[%clk 0:00:54.3]} 40... Ke7 {[%clk 0:00:23.2]} 41. g4 {[%clk 0:00:54.3]}
41... Kd6 {[%clk 0:00:23.6]} 42. Nc1 {[%clk 0:00:48.5]} 42... Bb2 {[%clk
0:00:21.7]} 43. Nd3 {[%clk 0:00:46.6]} 43... Ba3 {[%clk 0:00:22]} 44. Kd2 {[%clk
0:00:44.1]} 44... Bf3 {[%clk 0:00:22.3]} 45. Ke3 {[%clk 0:00:41.1]} 45... Bg2
{[%clk 0:00:20.7]} 46. h4 {[%clk 0:00:35.3]} 46... Bh3 {[%clk 0:00:20.9]} 47. g5
{[%clk 0:00:34.5]} 47... fxg5 {[%clk 0:00:21.3]} 48. hxg5 {[%clk 0:00:33.7]}
48... h5 {[%clk 0:00:20.9]} 49. f5 {[%clk 0:00:29.8]} 49... Ke7 {[%clk
0:00:21.3]} 50. Bb3 {[%clk 0:00:24.2]} 50... h4 {[%clk 0:00:20.2]} 51. Nf4
{[%clk 0:00:20.9]} 51... Bg4 {[%clk 0:00:18.3]} 52. Ng6+ {[%clk 0:00:21.1]}
52... Kd6 {[%clk 0:00:17]} 53. Nxh4 {[%clk 0:00:22]} 53... Bc1+ {[%clk
0:00:17.5]} 54. Kd4 {[%clk 0:00:22.1]} 54... Bxg5 {[%clk 0:00:18.2]} 55. e5+
{[%clk 0:00:21.9]} 55... Kc6 {[%clk 0:00:17.7]} 56. Ng6 {[%clk 0:00:21.2]} 56...
Bxf5 {[%clk 0:00:17.6]} 57. Nf8 {[%clk 0:00:18.9]} 57... Be7 {[%clk 0:00:16.6]}
58. Ne6 {[%clk 0:00:18.5]} 58... g5 {[%clk 0:00:15.6]} 59. Ke3 {[%clk
0:00:14.3]} 59... Bc5+ {[%clk 0:00:13.4]} 60. Kf3 {[%clk 0:00:12.4]} 60... Bb6
{[%clk 0:00:11.6]} 61. Nxg5 {[%clk 0:00:12.2]} 61... Bd4 {[%clk 0:00:10.7]} 62.
e6 {[%clk 0:00:12.2]} 62... Kd6 {[%clk 0:00:11.1]} 63. Kf4 {[%clk 0:00:10.8]}
63... Bg6 {[%clk 0:00:09.6]} 64. Nf7+ {[%clk 0:00:11.1]} 64... Ke7 {[%clk
0:00:09.4]} 65. Ne5 {[%clk 0:00:10.7]} 65... Bb1 {[%clk 0:00:09.2]} 66. Nc6+
{[%clk 0:00:10.7]} 66... Kd6 {[%clk 0:00:09.5]} 67. Nxd4 {[%clk 0:00:11.3]} 1-0

[Event "*** Titled Tuesday Blitz"]
[Site "Chess.com"]
[Date "2020.04.07"]
[Round "8"]
[White "Borsuk_Konstantin"]
[Black "TomPolgar"]
[Result "1-0"]
[WhiteElo "2463"]
[BlackElo "2308"]
[TimeControl "180+1"]
[EndTime "14:35:21 PDT"]
[Termination "Borsuk_Konstantin won by checkmate"]

1. d4 {[%clk 0:02:12.9]} 1... Nf6 {[%clk 0:02:57.5]} 2. c4 {[%clk 0:02:12.8]}
2... e6 {[%clk 0:02:53.2]} 3. Nc3 {[%clk 0:02:13.3]} 3... Bb4 {[%clk 0:02:52.9]}
4. Qc2 {[%clk 0:02:13]} 4... O-O {[%clk 0:02:52.2]} 5. a3 {[%clk 0:02:13.3]}
5... Bxc3+ {[%clk 0:02:51.6]} 6. Qxc3 {[%clk 0:02:14.2]} 6... d5 {[%clk
0:02:50.9]} 7. Bg5 {[%clk 0:02:13.5]} 7... dxc4 {[%clk 0:02:46.8]} 8. e3 {[%clk
0:02:12.4]} 8... b6 {[%clk 0:02:30.9]} 9. Bxc4 {[%clk 0:02:11.1]} 9... Bb7
{[%clk 0:02:30.7]} 10. Nf3 {[%clk 0:02:10.6]} 10... Nbd7 {[%clk 0:02:02.9]} 11.
Be2 {[%clk 0:02:02.7]} 11... Rc8 {[%clk 0:01:39.6]} 12. b4 {[%clk 0:02:01.3]}
12... Ne4 {[%clk 0:01:32.4]} 13. Bxd8 {[%clk 0:01:57.7]} 13... Nxc3 {[%clk
0:01:32.5]} 14. Bh4 {[%clk 0:01:52.9]} 14... c5 {[%clk 0:01:25.7]} 15. dxc5
{[%clk 0:01:46]} 15... bxc5 {[%clk 0:01:26.6]} 16. b5 {[%clk 0:01:45.9]} 16...
Nb6 {[%clk 0:01:14]} 17. Kd2 {[%clk 0:01:33.9]} 17... Ne4+ {[%clk 0:01:03.1]}
18. Kc2 {[%clk 0:01:33.1]} 18... f6 {[%clk 0:01:00]} 19. a4 {[%clk 0:01:31.6]}
19... Nd5 {[%clk 0:00:57.1]} 20. Bc4 {[%clk 0:01:29.8]} 20... Rfd8 {[%clk
0:00:51.3]} 21. Rhd1 {[%clk 0:01:25.3]} 21... Kf7 {[%clk 0:00:47]} 22. Kb3
{[%clk 0:01:09.3]} 22... h5 {[%clk 0:00:45.8]} 23. Bg3 {[%clk 0:01:08.3]} 23...
g5 {[%clk 0:00:44.9]} 24. Rac1 {[%clk 0:00:54.5]} 24... h4 {[%clk 0:00:42.6]}
25. Nxh4 {[%clk 0:00:54.4]} 25... gxh4 {[%clk 0:00:43.3]} 26. Bxh4 {[%clk
0:00:54.1]} 26... Rh8 {[%clk 0:00:36.5]} 27. Bg3 {[%clk 0:00:53.8]} 27... Nxg3
{[%clk 0:00:35.2]} 28. hxg3 {[%clk 0:00:54.7]} 28... Ke7 {[%clk 0:00:32.5]} 29.
e4 {[%clk 0:00:49]} 29... Nb6 {[%clk 0:00:31.3]} 30. f3 {[%clk 0:00:47.2]} 30...
Rcd8 {[%clk 0:00:21.9]} 31. a5 {[%clk 0:00:45.7]} 31... Rxd1 {[%clk 0:00:13.2]}
32. Rxd1 {[%clk 0:00:44.8]} 32... Nd7 {[%clk 0:00:13.2]} 33. Rd2 {[%clk
0:00:32.7]} 33... Rh1 {[%clk 0:00:13.2]} 34. Kb2 {[%clk 0:00:30.1]} 34... Rg1
{[%clk 0:00:12.8]} 35. Rc2 {[%clk 0:00:24.7]} 35... Ne5 {[%clk 0:00:10.2]} 36.
Kc3 {[%clk 0:00:23]} 36... Nd7 {[%clk 0:00:09.7]} 37. g4 {[%clk 0:00:18.7]}
37... Ra1 {[%clk 0:00:09.6]} 38. Ba2 {[%clk 0:00:16.6]} 38... Rg1 {[%clk
0:00:07.9]} 39. Bc4 {[%clk 0:00:15.6]} 39... Ra1 {[%clk 0:00:07.3]} 40. Ba2
{[%clk 0:00:15.1]} 40... Bc8 {[%clk 0:00:07.5]} 41. Kb2 {[%clk 0:00:14.5]} 41...
Rg1 {[%clk 0:00:07.5]} 42. Bb3 {[%clk 0:00:13.3]} 42... Bb7 {[%clk 0:00:06.7]}
43. Ba4 {[%clk 0:00:12.5]} 43... Kd6 {[%clk 0:00:06.3]} 44. Rd2+ {[%clk
0:00:11.9]} 44... Kc7 {[%clk 0:00:06.6]} 45. b6+ {[%clk 0:00:11.8]} 45... axb6
{[%clk 0:00:07]} 46. Rxd7+ {[%clk 0:00:11.7]} 46... Kc8 {[%clk 0:00:06.9]} 47.
axb6 {[%clk 0:00:11.3]} 47... Rxg2+ {[%clk 0:00:07]} 48. Kc3 {[%clk 0:00:11.1]}
48... Rf2 {[%clk 0:00:06.8]} 49. Rc7+ {[%clk 0:00:10.9]} 49... Kb8 {[%clk
0:00:06.9]} 50. Re7 {[%clk 0:00:06.9]} 50... Rxf3+ {[%clk 0:00:07]} 51. Kc4
{[%clk 0:00:07.2]} 51... Ba6+ {[%clk 0:00:03.9]} 52. Kxc5 {[%clk 0:00:07]} 52...
Rc3+ {[%clk 0:00:04.1]} 53. Kd6 {[%clk 0:00:06.8]} 53... Re3 {[%clk 0:00:02.3]}
54. Bc6 {[%clk 0:00:05.8]} 54... Rd3+ {[%clk 0:00:01.9]} 55. Kxe6 {[%clk
0:00:04.7]} 55... Rf3 {[%clk 0:00:02.2]} 56. Re8+ {[%clk 0:00:03]} 56... Bc8+
{[%clk 0:00:02.8]} 57. Kd6 {[%clk 0:00:03.1]} 57... Rd3+ {[%clk 0:00:03.3]} 58.
Bd5 {[%clk 0:00:03.2]} 58... Rb3 {[%clk 0:00:02.7]} 59. b7 {[%clk 0:00:03.4]}
59... Rb6+ {[%clk 0:00:03.5]} 60. Kc5 {[%clk 0:00:02.8]} 60... Rxb7 {[%clk
0:00:03.9]} 61. Bxb7 {[%clk 0:00:03.6]} 61... Kxb7 {[%clk 0:00:04.8]} 62. Rxc8
{[%clk 0:00:03.4]} 62... Kxc8 {[%clk 0:00:05]} 63. Kd6 {[%clk 0:00:04.3]} 63...
Kd8 {[%clk 0:00:05.8]} 64. Ke6 {[%clk 0:00:05.2]} 64... Ke8 {[%clk 0:00:06.7]}
65. Kxf6 {[%clk 0:00:05.7]} 65... Kf8 {[%clk 0:00:07.6]} 66. g5 {[%clk
0:00:06.4]} 66... Kg8 {[%clk 0:00:08.5]} 67. g6 {[%clk 0:00:06.9]} 67... Kf8
{[%clk 0:00:09.4]} 68. e5 {[%clk 0:00:07.4]} 68... Kg8 {[%clk 0:00:10.3]} 69. e6
{[%clk 0:00:07.9]} 69... Kf8 {[%clk 0:00:11.2]} 70. e7+ {[%clk 0:00:08.2]} 70...
Kg8 {[%clk 0:00:12.1]} 71. e8=Q# {[%clk 0:00:07.1]} 1-0